fUSD/lending_fUSD_20250110
["ID","MTS","AMOUNT","RATE_DAILY","PERIOD"]
[348452605,1736533851896,-500.0,0.00010273,2]
[348452607,1736533851906,-500.0,0.00010273,2]
[348452609,1736533851916,-500.0,0.00010273,2]
[348452611,1736533851926,-500.0,0.00010273,2]
[348452613,1736533851936,-500.0,0.00010273,2]
[348452615,1736533851946,-500.0,0.00010273,2]
[348452617,1736533851956,-377.74755712,0.00010273,2]
[348452619,1736533851965,-572.18051047,0.00010273,2]
[348452621,1736533851975,-500.0,0.00010273,2]
[348452623,1736533851984,-500.0,0.00010273,2]
[348452625,1736533851993,-500.0,0.00010273,2]
[348452627,1736533852003,-500.0,0.00010273,2]
[348452629,1736533852012,-500.0,0.00010273,2]
[348452631,1736533852021,-500.0,0.00010273,2]
[348452633,1736533852030,-500.0,0.00010273,2]
[348452634,1736533852041,-500.0,0.00010273,2]
[348452636,1736533852051,-500.0,0.00010273,2]
[348452639,1736533852060,-500.0,0.00010273,2]
[348452640,1736533852069,-500.0,0.00010273,2]
[348452642,1736533852079,-500.0,0.00010273,2]
[348452644,1736533852088,-500.0,0.00010273,2]
[348452646,1736533852097,-500.0,0.00010273,2]
[348452648,1736533852106,-500.0,0.00010273,2]
[348452650,1736533852116,-500.0,0.00010273,2]
[348452652,1736533852125,-500.0,0.00010273,2]
[348452654,1736533852135,-500.0,0.00010273,2]
[348452657,1736533852145,-500.0,0.00010273,2]
[348452658,1736533852154,-500.0,0.00010273,2]
[348452660,1736533852165,-541.35,0.00010273,2]
[348452662,1736533852174,-500.0,0.00010273,2]
[348452665,1736533852184,-500.0,0.00010273,2]
[348452666,1736533852194,-500.0,0.00010273,2]
[348452668,1736533852203,-500.0,0.00010273,2]
[348452670,1736533852212,-500.0,0.00010273,2]
[348452672,1736533852223,-500.0,0.00010273,2]
[348452674,1736533852232,-500.0,0.00010273,2]
[348452676,1736533852242,-500.0,0.00010273,2]
[348452678,1736533852252,-500.0,0.00010273,2]
[348452680,1736533852261,-500.0,0.00010273,2]
[348452682,1736533852271,-500.0,0.00010273,2]
[348452684,1736533852282,-500.0,0.00010273,2]
[348452686,1736533852292,-500.0,0.00010273,2]
[348452688,1736533852301,-500.0,0.00010273,2]
[348452690,1736533852310,-500.0,0.00010273,2]
[348452692,1736533852320,-500.0,0.00010273,2]
[348452694,1736533852329,-500.0,0.00010273,2]
[348452696,1736533852339,-500.0,0.00010273,2]
[348452698,1736533852348,-500.0,0.00010273,2]
[348452700,1736533852357,-500.0,0.00010273,2]
[348452702,1736533852366,-500.0,0.00010273,2]
[348452704,1736533852375,-500.0,0.00010273,2]
[348452706,1736533852384,-500.0,0.00010273,2]
[348452708,1736533852393,-500.0,0.00010273,2]
[348452710,1736533852402,-500.0,0.00010273,2]
[348452712,1736533852411,-500.0,0.00010273,2]
[348452714,1736533852421,-500.0,0.00010273,2]
[348452716,1736533852430,-500.0,0.00010273,2]
[348452717,1736533852439,-500.0,0.00010273,2]
[348452718,1736533852448,-500.0,0.00010273,2]
[348452719,1736533852458,-500.0,0.00010273,2]
[348452720,1736533852467,-500.0,0.00010273,2]
[348452721,1736533852477,-500.0,0.00010273,2]
[348452722,1736533852486,-500.0,0.00010273,2]
[348452723,1736533852495,-500.0,0.00010273,2]
[348452724,1736533852505,-500.0,0.00010273,2]
[348452725,1736533852514,-1071.0,0.00010273,2]
[348452726,1736533852524,-500.0,0.00010273,2]
[348452727,1736533852534,-500.0,0.00010273,2]
[348452728,1736533852545,-500.0,0.00010273,2]
[348452729,1736533852555,-1778.38,0.00010273,2]
[348452730,1736533852565,-500.0,0.00010273,2]
[348452731,1736533852574,-500.0,0.00010273,2]
[348452732,1736533852585,-500.0,0.00010273,2]
[348452733,1736533852595,-500.0,0.00010273,2]
[348452734,1736533852605,-500.0,0.00010273,2]
[348452735,1736533852614,-500.0,0.00010273,2]
[348452736,1736533852623,-1645.69,0.00010273,2]
[348452737,1736533852633,-500.0,0.00010372,2]
[348452738,1736533852643,-500.0,0.00010372,2]
[348452739,1736533852652,-500.0,0.00010372,2]
[348452740,1736533852666,-500.0,0.00010372,2]
[348452741,1736533852675,-507.7414816,0.00010372,2]
[348452742,1736533852684,-500.0,0.00010372,2]
[348452743,1736533852693,-610.37196563,0.00010372,2]
[348452744,1736533852704,-500.0,0.00010372,2]
[348452745,1736533852714,-500.0,0.00010372,2]
[348452746,1736533852724,-500.0,0.00010372,2]
[348452747,1736533852735,-500.0,0.00010372,2]
[348452748,1736533852744,-599.37,0.00010372,2]
[348452749,1736533852754,-500.0,0.00010372,2]
[348452750,1736533852763,-500.0,0.00010372,2]
[348452751,1736533852772,-500.0,0.00010372,2]
[348452752,1736533852783,-500.0,0.00010372,2]
[348452753,1736533852793,-500.0,0.00010372,2]
[348452754,1736533852802,-500.0,0.00010372,2]
[348452755,1736533852812,-500.0,0.00010372,2]
[348452756,1736533852823,-503.60305246,0.00010372,2]
[348452757,1736533852833,-500.0,0.00010372,2]
[348452758,1736533852844,-505.97139791,0.00010372,2]
[348452759,1736533852855,-500.0,0.00010372,2]
[348452760,1736533852865,-500.0,0.00010372,2]
[348452761,1736533852875,-500.0,0.00010372,2]
[348452762,1736533852884,-249.3227563,0.00010372,2]
[348452763,1736533852893,-500.0,0.00010372,2]
[348452764,1736533852904,-500.0,0.00010372,2]
[348452765,1736533852914,-500.0,0.00010372,2]
[348452766,1736533852923,-500.0,0.00010372,2]
[348452767,1736533852932,-500.0,0.00010372,2]
[348452768,1736533852942,-500.0,0.00010372,2]
[348452769,1736533852953,-500.0,0.00010372,2]
[348452770,1736533852963,-500.0,0.00010372,2]
[348452771,1736533852972,-500.0,0.00010372,2]
[348452772,1736533852982,-1348.67,0.00010372,2]
[348452773,1736533852992,-500.0,0.00010372,2]
[348452774,1736533853001,-500.0,0.00010372,2]
[348452775,1736533853012,-500.0,0.00010372,2]
[348452776,1736533853023,-500.0,0.00010372,2]
[348452777,1736533853035,-500.0,0.00010372,2]
[348452778,1736533853049,-500.0,0.00010372,2]
[348452779,1736533853060,-500.0,0.00010372,2]
[348452780,1736533853070,-2083.43,0.00010372,2]
[348452781,1736533853079,-500.0,0.00010372,2]
[348452782,1736533853088,-500.0,0.00010372,2]
[348452783,1736533853098,-500.0,0.00010372,2]
[348452784,1736533853106,-500.0,0.00010372,2]
[348452785,1736533853116,-500.0,0.00010372,2]
[348452786,1736533853126,-500.0,0.00010372,2]
[348452787,1736533853135,-500.0,0.00010372,2]
[348452788,1736533853145,-515.06299601,0.00010372,2]
[348452789,1736533853154,-500.0,0.00010372,2]
[348452790,1736533853163,-551.99,0.00010372,2]
[348452791,1736533853172,-500.0,0.00010372,2]
[348452792,1736533853184,-500.0,0.00010372,2]
[348452793,1736533853194,-500.0,0.00010372,2]
[348452794,1736533853203,-500.0,0.00010372,2]
[348452795,1736533853214,-500.0,0.00010372,2]
[348452796,1736533853225,-820.31,0.00010372,2]
[348452797,1736533853235,-500.0,0.00010372,2]
[348452798,1736533853245,-500.0,0.00010372,2]
[348452799,1736533853256,-500.0,0.00010372,2]
[348452800,1736533853266,-500.0,0.00010372,2]
[348452801,1736533853275,-500.0,0.00010372,2]
[348452802,1736533853286,-500.0,0.00010372,2]
[348452803,1736533853296,-316.08770542,0.00010372,2]
[348452804,1736533853305,-624.32,0.00010372,2]
[348452805,1736533853315,-500.0,0.00010372,2]
[348452806,1736533853324,-500.0,0.00010372,2]
[348452807,1736533853335,-500.0,0.00010372,2]
[348452808,1736533853344,-464.24502252,0.00010372,2]
[348452809,1736533853354,-500.0,0.00010372,2]
[348452810,1736533853364,-624.44673214,0.00010372,2]
[348452811,1736533853373,-500.0,0.00010372,2]
[348452812,1736533853395,-500.0,0.00010372,2]
[348452813,1736533853406,-500.0,0.00010372,2]
[348452814,1736533853416,-500.0,0.00010372,2]
[348452815,1736533853426,-296.98891193,0.00010372,2]
[348452816,1736533853435,-311.21,0.00010372,2]
[348452817,1736533853445,-500.0,0.00010374,2]
[348452818,1736533853454,-500.0,0.00010374,2]
[348452819,1736533853463,-500.0,0.00010374,2]
[348452820,1736533853473,-500.0,0.00010374,2]
[348452821,1736533853483,-500.0,0.00010374,2]
[348452822,1736533853492,-500.0,0.00010374,2]
[348452823,1736533853502,-500.0,0.00010374,2]
[348452824,1736533853511,-552.23,0.00010374,2]
[348452825,1736533853521,-500.0,0.00010374,2]
[348452826,1736533853533,-500.0,0.00010374,2]
[348452827,1736533853543,-612.53,0.00010374,2]
[348452828,1736533853553,-1776.52,0.00010374,2]
[348452829,1736533853564,-1838.22,0.00010374,2]
[348452830,1736533853573,-500.0,0.00010374,2]
[348452831,1736533853583,-760.22,0.00010374,2]
[348452832,1736533853593,-1504.35,0.00010374,2]
[348452833,1736533853603,-1213.34,0.00010374,2]
[348452834,1736533853613,-1034.34,0.00010374,2]
[348452835,1736533853623,-686.68,0.00010374,2]
[348452836,1736533853632,-500.0,0.00010374,2]
[348452837,1736533853642,-774.31,0.00010374,2]
[348452838,1736533853652,-500.0,0.00010374,2]
[348452839,1736533853669,-726.66,0.00010374,2]
[348452840,1736533853679,-681.25,0.00010374,2]
[348452841,1736533853691,-500.0,0.00010374,2]
[348452842,1736533853702,-639.87,0.00010374,2]
[348452843,1736533853712,-500.0,0.00010374,2]
[348452844,1736533853722,-987.53,0.00010374,2]
[348452845,1736533853732,-500.0,0.00010374,2]
[348452846,1736533853743,-708.72,0.00010374,2]
[348452847,1736533853753,-500.0,0.00010374,2]
[348452848,1736533853763,-480.93313836,0.00010374,2]
[348452849,1736533853773,-500.0,0.00010374,2]
[348452850,1736533853785,-1898.81,0.00010374,2]
[348452851,1736533853795,-500.0,0.00010374,2]
[348452852,1736533853805,-830.71,0.00010374,2]
[348452853,1736533853814,-598.57,0.00010374,2]
[348452854,1736533853824,-732.15,0.00010375,2]
[348452855,1736533853834,-500.0,0.00010375,2]
[348452856,1736533853844,-654.3,0.00010375,2]
[348452857,1736533853853,-500.0,0.00010375,2]
[348452858,1736533853863,-1256.27,0.00010375,2]
[348452859,1736533853873,-500.0,0.00010375,2]
[348452860,1736533853884,-500.0,0.00010375,2]
[348452861,1736533853894,-492.62554703,0.00010375,2]
[348452862,1736533853911,-2746.7,0.00010375,2]
[348452863,1736533853922,-752.83,0.00010375,2]
[348452864,1736533853932,-500.0,0.00010375,2]
[348452865,1736533853942,-505.23,0.00010375,2]
[348452866,1736533853953,-1292.91,0.00010375,2]
[348452867,1736533853963,-750.43,0.00010379,2]
[348452868,1736533853973,-500.0,0.00010379,2]
[348452869,1736533853983,-500.0,0.00010379,2]
[348452870,1736533853994,-1000.0,0.00010379,2]
[348452871,1736533854003,-572.96,0.00010379,2]
[348452872,1736533854014,-500.0,0.00010379,2]
[348452873,1736533854023,-1400.9,0.00010379,2]
[348452874,1736533854036,-669.03,0.00010409,2]
[348452875,1736533854047,-201.17622044,0.00010425,2]
[348452876,1736533854057,-163.29,0.00010494,2]
[348452877,1736533854067,-952.1,0.00010522,2]
[348452878,1736533854077,-1098.85,0.00010522,2]
[348452879,1736533854088,-1497.69,0.00010522,2]
[348452880,1736533854098,-859.29,0.00010522,2]
[348452881,1736533854108,-525.33,0.00010522,2]
[348452882,1736533854118,-1549.39,0.00010522,2]
[348452883,1736533854128,-500.0,0.00010522,2]
[348452884,1736533854138,-500.0,0.00010522,2]
[348452885,1736533854148,-500.0,0.00010522,2]
[348452886,1736533854158,-500.0,0.00010522,2]
[348452887,1736533854167,-726.64,0.00010523,2]
[348452888,1736533854178,-500.0,0.00010523,2]
[348452889,1736533854188,-573.4,0.00010523,2]
[348452890,1736533854197,-500.0,0.00010523,2]
[348452891,1736533854207,-636.89,0.00010523,2]
[348452892,1736533854219,-782.08,0.00010523,2]
[348452893,1736533854229,-500.0,0.00010523,2]
[348452894,1736533854240,-2162.29,0.00010523,2]
[348452895,1736533854251,-500.0,0.00010523,2]
[348452896,1736533854262,-665.58,0.00010523,2]
[348452897,1736533854272,-1085.29,0.00010523,2]
[348452898,1736533854285,-2973.03,0.00010523,2]
[348452899,1736533854295,-500.0,0.00010523,2]
[348452900,1736533854305,-500.0,0.00010523,2]
[348452901,1736533854315,-867.67,0.00010523,2]
[348452902,1736533854325,-593.95,0.00010523,2]
[348452903,1736533854334,-824.0,0.00010523,2]
[348452904,1736533854344,-1129.84,0.00010523,2]
[348452905,1736533854354,-936.89,0.00010523,2]
[348452906,1736533854364,-1656.28,0.00010523,2]
[348452907,1736533854374,-714.0,0.00010523,2]
[348452908,1736533854384,-509.75,0.00010523,2]
[348452909,1736533854394,-500.0,0.00010523,2]
[348452910,1736533854409,-500.0,0.00010523,2]
[348452911,1736533854419,-943.51,0.00010523,2]
[348452912,1736533854429,-467.076034,0.00010523,2]
[348452913,1736533854438,-1256.8,0.00010523,2]
[348452914,1736533854448,-500.0,0.00010523,2]
[348452915,1736533854458,-500.0,0.00010546,2]
[348452916,1736533854468,-500.0,0.00010547,2]
[348452917,1736533854479,-500.0,0.00010547,2]
[348452918,1736533854489,-500.0,0.00010547,2]
[348452919,1736533854500,-500.0,0.00010547,2]
[348452920,1736533854511,-500.0,0.00010547,2]
[348452921,1736533854522,-500.0,0.00010547,2]
[348452922,1736533854534,-500.0,0.00010547,2]
[348452923,1736533854547,-500.0,0.00010547,2]
[348452924,1736533854558,-500.0,0.00010547,2]
[348452925,1736533854569,-500.0,0.00010547,2]
[348452926,1736533854580,-500.0,0.00010547,2]
[348452927,1736533854590,-500.0,0.00010547,2]
[348452928,1736533854601,-500.0,0.00010547,2]
[348452929,1736533854612,-500.0,0.00010547,2]
[348452930,1736533854623,-500.0,0.00010547,2]
[348452931,1736533854634,-500.0,0.00010547,2]
[348452932,1736533854646,-500.0,0.00010547,2]
[348452933,1736533854658,-504.03,0.00010547,2]
[348452934,1736533854669,-500.0,0.00010547,2]
[348452935,1736533854683,-500.0,0.00010547,2]
[348452936,1736533854694,-500.0,0.00010547,2]
[348452937,1736533854706,-500.0,0.00010547,2]
[348452938,1736533854717,-581.02,0.00010547,2]
[348452939,1736533854728,-500.0,0.00010547,2]
[348452940,1736533854740,-500.0,0.00010547,2]
[348452941,1736533854751,-500.0,0.00010547,2]
[348452942,1736533854762,-500.0,0.00010547,2]
[348452943,1736533854774,-500.0,0.00010547,2]
[348452944,1736533854787,-500.0,0.00010547,2]
[348452945,1736533854799,-500.0,0.00010547,2]
[348452946,1736533854809,-500.0,0.00010547,2]
[348452947,1736533854820,-500.0,0.00010547,2]
[348452948,1736533854831,-500.0,0.00010547,2]
[348452949,1736533854843,-500.0,0.00010547,2]
[348452950,1736533854853,-500.0,0.00010547,2]
[348452951,1736533854866,-500.0,0.00010547,2]
[348452952,1736533854877,-500.0,0.00010547,2]
[348452953,1736533854887,-500.0,0.00010547,2]
[348452954,1736533854895,-500.0,0.00010547,2]
[348452955,1736533854907,-500.0,0.00010547,2]
[348452956,1736533854923,-385.06,0.00010547,2]
[348452957,1736533854934,-500.0,0.00010547,2]
[348452958,1736533854945,-500.0,0.00010547,2]
[348452959,1736533854956,-500.0,0.00010547,2]
[348452960,1736533854967,-500.0,0.00010547,2]
[348452961,1736533854979,-500.0,0.00010547,2]
[348452962,1736533854990,-500.0,0.00010547,2]
[348452963,1736533855001,-500.0,0.00010547,2]
[348452964,1736533855011,-500.0,0.00010547,2]
[348452965,1736533855022,-500.0,0.00010547,2]
[348452966,1736533855034,-500.0,0.00010547,2]
[348452967,1736533855045,-500.0,0.00010547,2]
[348452968,1736533855055,-392.55,0.00010547,2]
[348452969,1736533855067,-500.0,0.00010547,2]
[348452970,1736533855077,-500.0,0.00010547,2]
[348452971,1736533855088,-632.67,0.00010547,2]
[348452972,1736533855099,-500.0,0.00010547,2]
[348452973,1736533855109,-500.0,0.00010547,2]
[348452974,1736533855120,-500.0,0.00010547,2]
[348452975,1736533855132,-500.0,0.00010547,2]
[348452976,1736533855142,-500.0,0.00010547,2]
[348452977,1736533855153,-500.0,0.00010547,2]
[348452978,1736533855164,-500.0,0.00010547,2]
[348452979,1736533855174,-541.35,0.00010547,2]
[348452980,1736533855185,-500.0,0.00010547,2]
[348452981,1736533855196,-500.0,0.00010547,2]
[348452982,1736533855206,-500.0,0.00010547,2]
[348452983,1736533855217,-500.0,0.00010547,2]
[348452984,1736533855228,-500.0,0.00010547,2]
[348452985,1736533855239,-500.0,0.00010547,2]
[348452986,1736533855249,-500.0,0.00010547,2]
[348452987,1736533855260,-500.0,0.00010547,2]
[348452988,1736533855270,-500.0,0.00010547,2]
[348452989,1736533855281,-500.0,0.00010547,2]
[348452990,1736533855293,-500.0,0.00010547,2]
[348452991,1736533855304,-500.0,0.00010547,2]
[348452992,1736533855316,-500.0,0.00010547,2]
[348452993,1736533855327,-500.0,0.00010547,2]
[348452994,1736533855337,-617.7,0.00010547,2]
[348452995,1736533855347,-500.0,0.00010547,2]
[348452996,1736533855358,-500.0,0.00010547,2]
[348452997,1736533855368,-500.0,0.00010547,2]
[348452998,1736533855379,-500.0,0.00010547,2]
[348452999,1736533855390,-500.0,0.00010547,2]
[348453000,1736533855400,-500.0,0.00010547,2]
[348453001,1736533855411,-500.0,0.00010547,2]
[348453002,1736533855422,-249.07246347,0.00010547,2]
[348453003,1736533855432,-500.0,0.00010547,2]
[348453004,1736533855444,-277.32925484,0.00010547,2]
[348453005,1736533855455,-500.0,0.00010547,2]
[348453006,1736533855466,-500.0,0.00010547,2]
[348453007,1736533855477,-500.0,0.00010547,2]
[348453008,1736533855487,-500.0,0.00010547,2]
[348453009,1736533855497,-378.53678996,0.00010547,2]
[348453010,1736533855507,-500.0,0.00010547,2]
[348453011,1736533855518,-500.0,0.00010547,2]
[348453012,1736533855530,-500.0,0.00010547,2]
[348453013,1736533855541,-500.0,0.00010547,2]
[348453014,1736533855553,-500.0,0.00010547,2]
[348453015,1736533855564,-580.10587438,0.00010547,2]
[348453016,1736533855574,-1071.0,0.00010547,2]
[348453017,1736533855585,-500.0,0.00010547,2]
[348453018,1736533855596,-500.0,0.00010547,2]
[348453019,1736533855606,-500.0,0.00010547,2]
[348453020,1736533855616,-1778.38,0.00010547,2]
[348453021,1736533855627,-500.0,0.00010547,2]
[348453022,1736533855638,-370.00206852,0.00010547,2]
[348453023,1736533855649,-500.0,0.00010547,2]
[348453024,1736533855661,-500.0,0.00010547,2]
[348453025,1736533855673,-500.0,0.00010547,2]
[348453026,1736533855685,-500.0,0.00010547,2]
[348453027,1736533855695,-1645.69,0.00010547,2]
[348453028,1736533855707,-500.0,0.00010646,2]
[348453029,1736533855718,-500.0,0.00010646,2]
[348453030,1736533855728,-500.0,0.00010646,2]
[348453031,1736533855741,-500.0,0.00010646,2]
[348453032,1736533855752,-500.0,0.00010646,2]
[348453033,1736533855764,-500.0,0.00010646,2]
[348453034,1736533855775,-500.0,0.00010646,2]
[348453035,1736533855786,-500.0,0.00010646,2]
[348453036,1736533855797,-500.0,0.00010646,2]
[348453037,1736533855807,-500.0,0.00010646,2]
[348453038,1736533855818,-500.0,0.00010646,2]
[348453039,1736533855829,-500.0,0.00010646,2]
[348453040,1736533855839,-500.0,0.00010646,2]
[348453041,1736533855850,-500.0,0.00010646,2]
[348453042,1736533855860,-500.0,0.00010646,2]
[348453043,1736533855871,-500.0,0.00010646,2]
[348453044,1736533855883,-1348.67,0.00010646,2]
[348453045,1736533855895,-500.0,0.00010646,2]
[348453046,1736533855906,-500.0,0.00010646,2]
[348453047,1736533855916,-500.0,0.00010646,2]
[348453048,1736533855926,-500.0,0.00010646,2]
[348453049,1736533855937,-2083.43,0.00010646,2]
[348453050,1736533855948,-500.0,0.00010646,2]
[348453051,1736533855960,-500.0,0.00010646,2]
[348453052,1736533855971,-500.0,0.00010646,2]
[348453053,1736533855982,-500.0,0.00010646,2]
[348453054,1736533855992,-500.0,0.00010646,2]
[348453055,1736533856002,-500.0,0.00010646,2]
[348453056,1736533856012,-551.99,0.00010646,2]
[348453057,1736533856023,-500.0,0.00010646,2]
[348453058,1736533856038,-500.0,0.00010646,2]
[348453059,1736533856048,-500.0,0.00010646,2]
[348453060,1736533856059,-500.0,0.00010646,2]
[348453061,1736533856070,-820.31,0.00010646,2]
[348453062,1736533856080,-500.0,0.00010646,2]
[348453063,1736533856091,-500.0,0.00010646,2]
[348453064,1736533856101,-500.0,0.00010646,2]
[348453065,1736533856111,-624.32,0.00010646,2]
[348453066,1736533856122,-500.0,0.00010646,2]
[348453067,1736533856132,-500.0,0.00010646,2]
[348453068,1736533856143,-500.0,0.00010646,2]
[348453069,1736533856154,-500.0,0.00010646,2]
[348453070,1736533856166,-500.0,0.00010646,2]
[348453071,1736533856178,-500.0,0.00010646,2]
[348453072,1736533856189,-500.0,0.00010646,2]
[348453073,1736533856200,-500.0,0.00010646,2]
[348453074,1736533856210,-500.0,0.00010648,2]
[348453075,1736533856221,-310.98337892,0.00010648,2]
[348453076,1736533856231,-551.69,0.00010648,2]
[348453077,1736533856242,-578.09,0.00010648,2]
[348453078,1736533856252,-612.53,0.00010648,2]
[348453079,1736533856262,-1776.52,0.00010648,2]
[348453080,1736533856273,-1838.22,0.00010648,2]
[348453081,1736533856284,-760.22,0.00010648,2]
[348453082,1736533856294,-1504.35,0.00010648,2]
[348453083,1736533856305,-1213.34,0.00010648,2]
[348453084,1736533856315,-1034.34,0.00010648,2]
[348453085,1736533856325,-686.68,0.00010648,2]
[348453086,1736533856336,-500.0,0.00010648,2]
[348453087,1736533856346,-774.31,0.00010648,2]
[348453088,1736533856356,-500.0,0.00010648,2]
[348453089,1736533856367,-726.66,0.00010648,2]
[348453090,1736533856377,-681.25,0.00010648,2]
[348453091,1736533856387,-500.0,0.00010648,2]
[348453092,1736533856398,-639.87,0.00010648,2]
[348453093,1736533856409,-500.0,0.00010648,2]
[348453094,1736533856419,-987.53,0.00010648,2]
[348453095,1736533856430,-500.0,0.00010648,2]
[348453096,1736533856440,-708.72,0.00010648,2]
[348453097,1736533856450,-500.0,0.00010648,2]
[348453098,1736533856460,-500.0,0.00010648,2]
[348453099,1736533856470,-1898.81,0.00010648,2]
[348453100,1736533856481,-500.0,0.00010648,2]
[348453101,1736533856492,-830.71,0.00010648,2]
[348453102,1736533856502,-598.57,0.00010648,2]
[348453103,1736533856512,-732.15,0.00010649,2]
[348453104,1736533856523,-500.0,0.00010649,2]
[348453105,1736533856534,-654.3,0.00010649,2]
[348453106,1736533856545,-1256.27,0.00010649,2]
[348453107,1736533856555,-500.0,0.00010649,2]
[348453108,1736533856565,-2746.7,0.00010649,2]
[348453109,1736533856576,-752.83,0.00010649,2]
[348453110,1736533856587,-500.0,0.00010649,2]
[348453111,1736533856597,-505.23,0.00010649,2]
[348453112,1736533856607,-1292.91,0.00010649,2]
[348453113,1736533856618,-500.0,0.00010653,2]
[348453114,1736533856629,-500.0,0.00010653,2]
[348453115,1736533856639,-1000.0,0.00010653,2]
[348453116,1736533856649,-572.96,0.00010653,2]
[348453117,1736533856660,-500.0,0.00010653,2]
[348453118,1736533856672,-1400.9,0.00010653,2]
[348453119,1736533856683,-1369.059,0.00010673,2]
[348453120,1736533856694,-3896.0,0.00010673,2]
[348453121,1736533856705,-150.0,0.00010673,2]
[348453122,1736533856716,-2015.0,0.00010673,2]
[348453123,1736533856726,-1173.0,0.00010673,2]
[348453124,1736533856736,-433.0,0.00010696,2]
[348453125,1736533856748,-201.17622044,0.000107,2]
[348453126,1736533856759,-167.14,0.00010765,2]
[348453127,1736533856769,-952.1,0.00010796,2]
[348453128,1736533856780,-1098.85,0.00010796,2]
[348453129,1736533856796,-1497.69,0.00010796,2]
[348453130,1736533856807,-859.29,0.00010796,2]
[348453131,1736533856818,-525.33,0.00010796,2]
[348453132,1736533856829,-1549.39,0.00010796,2]
[348453133,1736533856840,-500.0,0.00010796,2]
[348453134,1736533856850,-500.0,0.00010796,2]
[348453135,1736533856861,-726.64,0.00010797,2]
[348453136,1736533856872,-500.0,0.00010797,2]
[348453137,1736533856884,-573.4,0.00010797,2]
[348453138,1736533856895,-500.0,0.00010797,2]
[348453139,1736533856906,-636.89,0.00010797,2]
[348453140,1736533856917,-782.08,0.00010797,2]
[348453141,1736533856929,-500.0,0.00010797,2]
[348453142,1736533856941,-2162.29,0.00010797,2]
[348453143,1736533857237,-500.0,0.00010797,2]
[348453144,1736533857249,-665.58,0.00010797,2]
[348453145,1736533857260,-1085.29,0.00010797,2]
[348453146,1736533857270,-2973.03,0.00010797,2]
[348453147,1736533857280,-500.0,0.00010797,2]
[348453148,1736533857294,-500.0,0.00010797,2]
[348453149,1736533857305,-867.67,0.00010797,2]
[348453150,1736533857315,-593.95,0.00010797,2]
[348453151,1736533857324,-824.0,0.00010797,2]
[348453152,1736533857334,-936.89,0.00010797,2]
[348453153,1736533857344,-1129.84,0.00010797,2]
[348453154,1736533857355,-1656.28,0.00010797,2]
[348453155,1736533857365,-714.0,0.00010797,2]
[348453156,1736533857374,-509.75,0.00010797,2]
[348453157,1736533857384,-500.0,0.00010797,2]
[348453158,1736533857394,-943.51,0.00010797,2]
[348453159,1736533857403,-467.076034,0.00010797,2]